bitfinex/quotes_BTCUSD_20250115
["timestamp","ask_amount","ask_price","bid_price","bid_amount"]
[1736905599931,0.0007539,97533.0,97532.0,0.34378091]
[1736905600130,0.0007539,97533.0,97532.0,0.33478091]
[1736905600425,0.0007539,97533.0,97532.0,0.34378091]
[1736905600834,0.0007539,97533.0,97532.0,0.33478091]
[1736905601040,0.0007539,97533.0,97532.0,0.34378091]
[1736905601244,0.0007539,97533.0,97532.0,0.33978091]
[1736905601467,0.0007539,97533.0,97532.0,0.34378091]
[1736905602066,0.0007539,97533.0,97532.0,0.19265399]
[1736905602269,0.0007539,97533.0,97525.0,0.04242367]
[1736905602446,0.205073,97526.0,97525.0,0.04242367]
[1736905603528,0.20506,97532.0,97525.0,0.04242367]
[1736905603742,0.03198698,97533.0,97532.0,0.10085399]
[1736905603743,0.0109739,97533.0,97532.0,0.10085399]
[1736905603938,0.0109739,97533.0,97532.0,0.41014091]
[1736905604194,0.0109739,97533.0,97532.0,0.20508091]
[1736905604397,0.0007539,97533.0,97532.0,0.14665059]
[1736905604681,0.0007539,97533.0,97532.0,0.10085399]
[1736905605820,0.01683351,97533.0,97532.0,0.10285399]
[1736905606019,0.01683351,97533.0,97532.0,0.10464697]
[1736905606224,0.01683351,97533.0,97532.0,0.10964697]
[1736905606423,0.01683351,97533.0,97532.0,0.05121665]
[1736905606629,0.01683351,97533.0,97532.0,0.05321665]
[1736905607168,0.01683351,97533.0,97532.0,0.01079298]
[1736905607748,0.31263011,97533.0,97532.0,0.01079298]
[1736905607895,0.16683351,97533.0,97532.0,0.01079298]
[1736905608094,0.1507539,97533.0,97532.0,0.01079298]
[1736905608356,0.1507539,97533.0,97532.0,0.00879298]
[1736905608551,0.1507539,97533.0,97532.0,0.00179298]
[1736905608881,0.1507539,97533.0,97532.0,0.00379298]
[1736905609012,0.1507539,97533.0,97532.0,0.00979298]
[1736905609215,0.1507539,97533.0,97532.0,0.00379298]
[1736905609644,0.1507539,97533.0,97532.0,0.00579298]
[1736905609846,0.1507539,97533.0,97532.0,0.00679298]
[1736905610246,0.1507539,97533.0,97532.0,0.00279298]
[1736905610472,0.15,97532.0,97498.0,0.04242367]
[1736905610653,0.205109,97509.0,97491.0,0.0776]
[1736905610853,0.205109,97509.0,97496.0,0.05843032]
[1736905611054,0.205109,97509.0,97498.0,0.04242367]
[1736905611269,0.205099,97514.0,97500.0,0.05843032]
[1736905611470,0.205109,97510.0,97500.0,0.05843032]
[1736905611884,0.2051,97513.0,97500.0,0.05843032]
[1736905612085,0.12174471,97516.0,97505.0,0.05843032]
[1736905612312,0.205096,97515.0,97508.0,0.05843032]
[1736905612437,0.01608413,97512.0,97508.0,0.05843032]
[1736905614964,0.02636682,97512.0,97508.0,0.05843032]
[1736905615172,0.205105,97511.0,97508.0,0.06343032]
[1736905615412,0.205105,97511.0,97508.0,0.05943032]
[1736905615646,0.205105,97511.0,97508.0,0.05843032]
[1736905615798,0.205105,97511.0,97508.0,0.06343032]
[1736905616000,0.02636682,97512.0,97508.0,0.05943032]
[1736905616395,0.02636682,97512.0,97508.0,0.06443032]
[1736905616801,0.02636682,97512.0,97508.0,0.06543032]
[1736905617379,0.02636682,97512.0,97511.0,0.05843032]
[1736905617604,0.02636682,97512.0,97511.0,0.24025724]
[1736905617806,0.02636682,97512.0,97511.0,0.13603032]
[1736905618038,0.01028269,97512.0,97511.0,0.0776]
[1736905618245,0.205097,97515.0,97511.0,0.0776]
[1736905619322,0.410194,97515.0,97511.0,0.005]
[1736905619514,0.205109,97509.0,97508.0,0.00179298]
[1736905619675,0.355109,97509.0,97508.0,0.00179298]
[1736905620454,0.205098,97514.0,97508.0,0.00179298]
[1736905620455,0.410198,97514.0,97508.0,0.00179298]
[1736905620622,0.21562983,97509.0,97508.0,0.00179298]
[1736905620784,0.205109,97509.0,97508.0,0.00379298]
[1736905621208,0.205098,97514.0,97508.0,0.00379298]
[1736905621452,0.205082,97522.0,97508.0,0.00379298]
[1736905621453,0.14228659,97520.0,97514.0,0.05843032]
[1736905621574,0.12174471,97530.0,97521.0,0.05843032]
[1736905621773,0.205058,97534.0,97525.0,0.05843032]
[1736905622404,0.01608105,97532.0,97525.0,0.05843032]
[1736905622791,0.01608105,97532.0,97527.0,0.05843032]
[1736905623360,0.002,97530.0,97528.0,0.0822]
[1736905624895,0.01608105,97532.0,97528.0,0.0822]
[1736905626047,0.01608105,97532.0,97528.0,0.0892]
[1736905626475,0.01608105,97532.0,97528.0,0.0832]
[1736905626865,0.205063,97531.0,97528.0,0.0882]
[1736905627199,0.01608105,97532.0,97528.0,0.0882]
[1736905627356,0.01608105,97532.0,97530.0,0.05843032]
[1736905628463,0.42620405,97532.0,97528.0,0.0822]
[1736905628663,0.42620405,97532.0,97528.0,0.002]
[1736905628850,0.01608105,97532.0,97530.0,0.005]
[1736905629512,0.22114305,97532.0,97530.0,0.005]
[1736905629715,0.22114305,97532.0,97530.0,0.001]
[1736905629922,0.22114305,97532.0,97530.0,0.006]
[1736905630359,0.22114305,97532.0,97524.0,0.05843032]
[1736905630565,0.205072,97527.0,97525.0,0.05843032]
[1736905630770,0.205063,97531.0,97525.0,0.05843032]
[1736905630972,0.01608105,97532.0,97520.0,0.0771]
[1736905631186,0.01608105,97532.0,97522.0,0.04242367]
[1736905631187,0.205065,97530.0,97522.0,0.04242367]
[1736905631387,0.205065,97530.0,97520.0,0.0771]
[1736905631736,0.32680971,97530.0,97522.0,0.05843032]
[1736905631937,0.205065,97530.0,97522.0,0.05843032]
[1736905632260,0.12174471,97532.0,97520.0,0.13753032]
[1736905632520,0.0008538,97527.0,97522.0,0.001]
[1736905632924,0.205075,97525.0,97522.0,0.004]
[1736905633096,0.205079,97523.0,97522.0,0.003]
[1736905633367,0.205102,97513.0,97511.0,0.00179298]
[1736905633572,0.15,97512.0,97511.0,0.00179298]
[1736905634779,0.15,97512.0,97506.0,0.0017934]
[1736905634780,0.15,97510.0,97506.0,0.0017934]
[1736905635087,0.12174471,97493.0,97481.0,0.10085399]
[1736905635282,0.205145,97492.0,97481.0,0.10085399]
[1736905636482,0.205145,97492.0,97481.0,0.10300103]
[1736905636984,0.02089962,97487.0,97481.0,0.10300103]
[1736905637153,0.02089962,97487.0,97482.0,0.05843032]
[1736905637643,0.02089962,97487.0,97481.0,0.00214704]
[1736905637847,0.205166,97482.0,97481.0,0.00214704]
[1736905638052,0.205166,97482.0,97481.0,0.00014704]
[1736905638314,0.205166,97482.0,97481.0,0.00414704]
[1736905638930,0.205166,97482.0,97481.0,0.00514704]
[1736905639260,0.205166,97482.0,97481.0,0.00014704]
[1736905639467,0.205166,97482.0,97481.0,0.00414704]
[1736905640226,0.21573401,97482.0,97481.0,0.00514704]
[1736905640758,0.01056801,97482.0,97481.0,0.00514704]
[1736905640958,0.205157,97486.0,97481.0,0.00514704]
[1736905641202,0.410316,97486.0,97481.0,0.00514704]
[1736905641742,0.410316,97486.0,97481.0,0.00414704]
[1736905641937,0.410316,97486.0,97481.0,0.00014704]
[1736905642113,0.410316,97486.0,97481.0,0.00214704]
[1736905643839,0.42052002,97486.0,97481.0,0.00214704]
[1736905645522,0.09914601,97482.0,97481.0,0.0017532]
[1736905645723,0.91133893,97482.0,97481.0,0.0017532]
[1736905646123,0.58153893,97482.0,97481.0,2e-07]
[1736905646324,0.91133893,97482.0,97481.0,2e-07]
[1736905646660,0.91133893,97482.0,97440.0,0.05843032]
[1736905646661,0.205251,97442.0,97434.0,0.06022162]
[1736905646823,0.27247633,97463.0,97434.0,0.06036863]
[1736905646824,0.12174471,97444.0,97434.0,0.06036863]
[1736905647208,0.01609416,97443.0,97434.0,0.00193831]
[1736905647589,0.205254,97441.0,97434.0,0.00193831]
[1736905647788,0.01609416,97443.0,97434.0,0.00193831]
[1736905648375,0.205254,97440.0,97434.0,0.00193831]
[1736905648550,0.02080388,97436.0,97434.0,0.00193831]
[1736905648901,0.02080388,97436.0,97434.0,0.00593831]
[1736905649149,0.02080388,97436.0,97434.0,0.00193831]
[1736905649355,0.01609416,97443.0,97434.0,0.00193831]
[1736905649356,0.01609416,97443.0,97437.0,0.05843032]
[1736905650359,0.01609416,97443.0,97441.0,0.05843032]
[1736905650797,0.01609416,97443.0,97442.0,0.05843032]
[1736905651940,0.01609416,97443.0,97442.0,0.06543032]
[1736905651941,0.01709416,97443.0,97442.0,0.06543032]
[1736905652140,0.01709416,97443.0,97442.0,0.06143032]
[1736905652602,0.002,97443.0,97442.0,0.06743032]
[1736905652758,0.002,97443.0,97442.0,0.009]
[1736905652967,0.002,97443.0,97442.0,0.006]
[1736905654375,0.205264,97436.0,97434.0,0.00193831]
[1736905655052,0.20525,97442.0,97434.0,0.00193831]
[1736905655203,0.205261,97437.0,97434.0,0.00193831]
[1736905656307,0.01609571,97441.0,97434.0,0.00293831]
[1736905656519,0.001,97436.0,97434.0,0.00693831]
[1736905656733,0.001,97436.0,97435.0,0.28220717]
[1736905656968,0.001,97436.0,97435.0,0.28118091]
[1736905657761,0.01609571,97441.0,97440.0,0.04242367]
[1736905657964,0.01609571,97441.0,97440.0,0.10085399]
[1736905658112,0.01012679,97450.0,97441.0,0.04242367]
[1736905658313,0.01012679,97450.0,97449.0,0.05843032]
[1736905658529,0.205188,97472.0,97456.0,0.05843032]
[1736905658750,0.205188,97472.0,97465.0,0.05843032]
[1736905658945,0.13207815,97470.0,97468.0,0.05843032]
[1736905659151,0.01033344,97470.0,97468.0,0.05843032]
[1736905659429,0.15,97475.0,97468.0,0.05843032]
[1736905659644,0.0202104,97472.0,97468.0,0.05843032]
[1736905659790,0.15,97475.0,97468.0,0.05843032]
[1736905660136,0.15,97475.0,97468.0,0.05857733]
[1736905660343,0.205182,97474.0,97468.0,0.05857733]
[1736905660487,0.205193,97470.0,97468.0,0.00014701]
[1736905660925,0.209193,97470.0,97468.0,0.00014701]
[1736905661127,0.205193,97470.0,97468.0,0.00014701]
[1736905661937,0.205247,97444.0,97440.0,0.0761]
[1736905662135,0.205247,97444.0,97443.0,0.05843032]
[1736905662340,0.205262,97436.0,97435.0,0.06036887]
[1736905662538,0.205257,97439.0,97435.0,0.06036887]
[1736905663601,0.22134091,97444.0,97435.0,0.06036887]
[1736905663948,0.01609491,97444.0,97443.0,0.05843032]
[1736905664328,0.01609491,97444.0,97443.0,0.06443032]
[1736905664630,0.01609491,97444.0,97443.0,0.05843032]
[1736905665340,0.01609491,97444.0,97435.0,0.06036887]
[1736905665341,0.205258,97439.0,97435.0,0.06036887]
[1736905665502,0.205258,97439.0,97435.0,0.00193855]
[1736905665706,0.03644709,97444.0,97442.0,0.05843032]
[1736905665907,0.01609491,97444.0,97443.0,0.05843032]
[1736905667134,0.01609491,97444.0,97443.0,0.06143032]
[1736905667539,0.01609491,97444.0,97443.0,0.05843032]
[1736905667746,0.01609491,97444.0,97443.0,0.06043032]
[1736905668099,0.01609491,97444.0,97443.0,0.05843032]
[1736905668301,0.01049561,97446.0,97443.0,0.06043032]
[1736905668506,0.02039948,97449.0,97443.0,0.06043032]
[1736905668720,0.02039948,97449.0,97448.0,0.05843032]
[1736905669483,0.13208946,97452.0,97448.0,0.05843032]
[1736905669884,0.020547,97450.0,97448.0,0.05843032]
[1736905670089,0.22578,97450.0,97449.0,0.05843032]
[1736905670309,0.431013,97450.0,97447.0,0.05843032]
[1736905670501,0.205262,97436.0,97435.0,0.06036887]
[1736905670937,0.205262,97436.0,97435.0,0.00193855]
[1736905671708,0.205262,97436.0,97435.0,0.00393855]
[1736905672106,0.355262,97436.0,97435.0,0.00393855]
[1736905673355,0.355262,97436.0,97435.0,0.00193855]
[1736905673528,0.355262,97436.0,97435.0,0.00393855]
[1736905673670,0.36569433,97436.0,97435.0,0.00393855]
[1736905673870,0.36569433,97436.0,97435.0,0.00193855]
[1736905674369,0.36769433,97436.0,97435.0,0.00193855]
[1736905674991,0.36969433,97436.0,97435.0,0.00193855]
[1736905675197,0.36769433,97436.0,97435.0,0.00193855]
[1736905675400,0.36969433,97436.0,97435.0,0.00193855]
[1736905676549,0.21969433,97436.0,97435.0,0.00193855]
[1736905677324,0.21769433,97436.0,97435.0,0.00193855]
[1736905677521,0.21569433,97436.0,97435.0,0.00193855]
[1736905677721,0.21669433,97436.0,97435.0,0.00193855]
[1736905677906,0.21869433,97436.0,97435.0,0.00193855]
[1736905678101,0.21769433,97436.0,97435.0,0.00193855]
[1736905678412,0.01243233,97436.0,97435.0,0.00193855]
[1736905678782,0.01243233,97436.0,97435.0,0.06036887]
[1736905679102,0.01443233,97436.0,97435.0,0.06036887]
[1736905679596,0.01243233,97436.0,97435.0,0.06036887]
[1736905680635,0.01043233,97436.0,97435.0,0.06336887]
[1736905680912,0.205256,97440.0,97435.0,0.06336887]
[1736905681123,0.410512,97440.0,97435.0,0.06336887]
[1736905681908,0.410516,97438.0,97435.0,0.00493855]
[1736905682126,0.10422692,97437.0,97435.0,0.00493855]
[1736905682486,0.205262,97436.0,97435.0,0.00493855]
[1736905682688,0.205262,97436.0,97435.0,0.00193855]
[1736905683178,0.355262,97436.0,97435.0,0.00193855]
[1736905683637,0.356262,97436.0,97435.0,0.00193855]
[1736905683844,0.46048892,97436.0,97435.0,0.00193855]
[1736905683955,0.15,97435.0,97434.0,0.0017913]
[1736905684160,0.15,97435.0,97434.0,0.00185339]
[1736905684161,0.34212692,97435.0,97434.0,0.00185339]
[1736905684848,0.25422692,97435.0,97434.0,0.00185339]
[1736905685839,0.27576614,97435.0,97434.0,0.00185339]
[1736905686869,0.27676614,97435.0,97434.0,0.00185339]
[1736905687474,0.62266401,97435.0,97434.0,0.00185339]
[1736905687674,0.023,97434.0,97430.0,0.0017913]
[1736905687874,0.62956614,97435.0,97399.0,0.079062]
[1736905687875,0.15,97427.0,97408.0,0.06022561]
[1736905688085,0.205311,97413.0,97410.0,0.00229196]
[1736905688384,0.410622,97413.0,97410.0,0.00229196]
[1736905688640,0.205311,97413.0,97410.0,0.00229196]
[1736905689041,0.2053,97418.0,97415.0,0.05843032]
[1736905689246,0.205277,97429.0,97425.0,0.05843032]
[1736905689640,0.02044872,97426.0,97425.0,0.05843032]
[1736905691067,0.02144872,97426.0,97425.0,0.05843032]
[1736905691330,0.02044872,97426.0,97425.0,0.05843032]
[1736905692672,0.02044872,97426.0,97425.0,0.06043032]
[1736905693945,0.02044872,97426.0,97425.0,0.05843032]
[1736905694358,0.02044872,97426.0,97425.0,0.06228482]
[1736905697180,0.01609825,97429.0,97428.0,0.17885399]
[1736905697351,0.01609825,97429.0,97428.0,0.28308091]
[1736905697753,0.01609825,97429.0,97428.0,0.58198091]
[1736905697959,0.00179446,97443.0,97442.0,0.43300399]
[1736905698169,0.00179446,97443.0,97442.0,0.53723091]
[1736905698384,0.00179446,97443.0,97442.0,0.63723091]
[1736905698586,0.00179446,97443.0,97442.0,0.78723091]
[1736905698802,0.09150277,97477.0,97467.0,0.10085399]
[1736905699210,0.01101954,97468.0,97467.0,0.22775399]
[1736905699419,0.0008542,97468.0,97467.0,0.22781608]
[1736905700395,0.0008542,97468.0,97467.0,0.23281608]
[1736905701220,0.0008542,97468.0,97467.0,0.23381608]
[1736905703705,0.0008542,97468.0,97467.0,0.43901308]
[1736905704687,0.0008542,97468.0,97467.0,0.23381608]
[1736905706176,0.0008542,97468.0,97467.0,0.338043]
[1736905710077,0.0008542,97468.0,97467.0,0.333043]
[1736905710201,0.0008542,97468.0,97467.0,0.332043]
[1736905710425,0.0008542,97468.0,97467.0,0.338043]
[1736905711054,0.0008542,97468.0,97467.0,0.337043]
[1736905711246,0.0008542,97468.0,97467.0,0.342043]
[1736905711723,0.0008542,97468.0,97467.0,0.28961933]
[1736905712062,0.0008542,97468.0,97467.0,0.341043]
[1736905712264,0.0008542,97468.0,97467.0,0.332043]
[1736905712663,0.0008542,97468.0,97467.0,0.29661933]
[1736905713036,0.0008542,97468.0,97467.0,0.339043]
[1736905713701,0.0008542,97468.0,97467.0,0.343043]
[1736905713931,0.0008542,97468.0,97467.0,0.336043]
[1736905714339,0.0008542,97468.0,97467.0,0.332043]
[1736905714913,0.0008542,97468.0,97467.0,0.336043]
[1736905715317,0.0008542,97468.0,97467.0,0.332043]
[1736905715520,0.0008542,97468.0,97467.0,0.28961933]
[1736905715675,0.0008542,97468.0,97467.0,0.336043]
[1736905715876,0.0008542,97468.0,97467.0,0.345043]
[1736905716096,0.0008542,97468.0,97467.0,0.336043]
[1736905716298,0.0008542,97468.0,97467.0,0.287143]
[1736905716497,0.0008542,97468.0,97467.0,0.296143]
[1736905716902,0.0008542,97468.0,97467.0,0.19191608]
[1736905717124,0.0008542,97468.0,97467.0,0.18791608]
[1736905717293,0.01139921,97468.0,97467.0,0.18791608]
[1736905717500,0.01139921,97468.0,97467.0,0.19091608]
[1736905718936,0.01139921,97468.0,97467.0,0.07049241]
[1736905720160,0.01139921,97468.0,97467.0,0.06149241]
[1736905720363,0.01139921,97468.0,97467.0,0.05849241]
[1736905720606,0.01139921,97468.0,97467.0,0.00306209]
[1736905720835,0.16139921,97468.0,97467.0,6.209e-05]
[1736905721238,0.16139921,97468.0,97467.0,0.00106209]
[1736905721754,0.16139921,97468.0,97448.0,0.04242367]
[1736905721755,0.33852613,97468.0,97448.0,0.04242367]
[1736905721915,0.205235,97449.0,97448.0,0.04248577]
[1736905722706,0.205221,97456.0,97450.0,0.05843032]
[1736905722909,0.205221,97456.0,97453.0,0.05843032]
[1736905723945,0.205233,97450.0,97449.0,0.05843032]
[1736905724170,0.205233,97450.0,97448.0,6.21e-05]
[1736905725458,0.206233,97450.0,97448.0,6.21e-05]
[1736905725664,0.206233,97450.0,97449.0,0.003]
[1736905725843,0.206233,97450.0,97448.0,6.21e-05]
[1736905726264,0.10422692,97449.0,97448.0,6.21e-05]
[1736905726474,0.25422692,97449.0,97448.0,6.21e-05]
[1736905727196,0.0879,97447.0,97426.0,0.05843032]
[1736905727368,0.205279,97428.0,97426.0,0.05843032]
[1736905728941,0.205279,97428.0,97426.0,0.06043032]
[1736905729150,0.205279,97428.0,97426.0,0.009]
[1736905729933,0.205279,97428.0,97426.0,0.002]
[1736905730128,0.02051951,97427.0,97426.0,0.002]
[1736905730345,0.02051951,97427.0,97425.0,0.00135516]
[1736905730346,0.205284,97426.0,97425.0,0.00135516]
[1736905730545,0.30951092,97426.0,97425.0,0.00135516]
[1736905730743,0.37441092,97426.0,97425.0,0.00135516]
[1736905730945,0.52441092,97426.0,97425.0,0.00135516]
[1736905732335,0.52741092,97426.0,97425.0,0.00135516]
[1736905732558,0.52841092,97426.0,97425.0,0.00135516]
[1736905733162,0.46351092,97426.0,97425.0,0.00135516]
[1736905733445,0.46251092,97426.0,97425.0,0.00135516]
[1736905733576,0.45951092,97426.0,97425.0,0.00135516]
[1736905733791,0.48551092,97426.0,97425.0,0.00135516]
[1736905734514,0.48251092,97426.0,97425.0,0.00135516]
[1736905734708,0.48651092,97426.0,97425.0,0.00135516]
[1736905734908,0.50261194,97426.0,97425.0,0.00135516]
[1736905735171,0.50161194,97426.0,97425.0,0.00135516]
[1736905735315,0.82941194,97426.0,97425.0,0.00135516]
[1736905735512,0.83241194,97426.0,97425.0,0.00135516]
[1736905736052,0.83849194,97426.0,97425.0,0.00135516]
[1736905738298,0.82239092,97426.0,97425.0,0.00135516]
[1736905739242,0.79939092,97426.0,97425.0,0.00135516]
[1736905739645,0.79331092,97426.0,97425.0,0.00135516]
[1736905739777,0.79939092,97426.0,97425.0,0.00135516]
[1736905741915,0.689084,97426.0,97425.0,0.00135516]
[1736905742128,0.3338,97426.0,97425.0,0.00135516]
[1736905742534,0.3338,97426.0,97425.0,0.05978548]
[1736905742994,0.3308,97426.0,97425.0,0.05978548]
[1736905743395,0.004,97426.0,97425.0,0.05978548]
[1736905744009,0.001,97426.0,97425.0,0.05978548]
[1736905744207,0.01038334,97428.0,97427.0,0.05843032]
[1736905744527,0.02080591,97430.0,97429.0,0.05843032]
[1736905745462,0.02080591,97430.0,97425.0,0.00235516]
[1736905745463,0.205277,97429.0,97425.0,0.00235516]
[1736905745664,0.410554,97429.0,97425.0,0.00235516]
[1736905745864,0.205277,97429.0,97426.0,0.05843032]
[1736905746088,0.02080591,97430.0,97429.0,0.05843032]
[1736905746841,0.02080591,97430.0,97429.0,0.05943032]
[1736905747250,0.02080591,97430.0,97429.0,0.001]
[1736905747448,0.205277,97429.0,97425.0,0.00135516]
[1736905748311,0.410554,97429.0,97425.0,0.00135516]
[1736905748665,0.205281,97427.0,97425.0,0.00135516]
[1736905749287,0.10422692,97426.0,97425.0,0.00135516]
[1736905751621,0.10522692,97426.0,97425.0,0.00135516]
[1736905751827,0.10622692,97426.0,97425.0,0.00135516]
[1736905752189,0.11230692,97426.0,97425.0,0.00135516]
[1736905753373,0.44210692,97426.0,97425.0,0.00135516]
[1736905753676,0.45259643,97426.0,97425.0,0.00135516]
[1736905754070,0.62559643,97426.0,97425.0,0.00135516]
[1736905754273,0.205313,97412.0,97410.0,0.0017913]
[1736905755496,0.206313,97412.0,97410.0,0.0017913]
[1736905755696,0.205313,97412.0,97410.0,0.0017913]
[1736905756074,0.206313,97412.0,97410.0,0.0017913]
[1736905756537,0.207313,97412.0,97410.0,0.0017913]
[1736905756705,0.21747879,97412.0,97410.0,0.0017913]
[1736905756909,0.02056905,97411.0,97410.0,0.0017913]
[1736905757105,0.02056905,97411.0,97410.0,0.0016081]
[1736905759354,0.02156905,97411.0,97410.0,0.0016081]
[1736905760689,0.02056905,97411.0,97410.0,0.0016081]
[1736905760987,0.12579597,97411.0,97410.0,0.0016081]
[1736905761391,0.12479597,97411.0,97410.0,0.0016081]
[1736905761792,0.12579597,97411.0,97410.0,0.0016081]
[1736905762214,0.12479597,97411.0,97410.0,0.0016081]
[1736905762570,0.27479597,97411.0,97410.0,0.0016081]
[1736905762757,0.27579597,97411.0,97410.0,0.0016081]
[1736905762969,0.17156905,97411.0,97410.0,0.0016081]
[1736905763127,0.02356905,97411.0,97410.0,0.0016081]
[1736905763969,0.02256905,97411.0,97410.0,0.0016081]
[1736905764113,0.02456905,97411.0,97410.0,0.0016081]
[1736905764663,0.02056905,97411.0,97410.0,0.0016081]
[1736905765197,0.02256905,97411.0,97410.0,0.0016081]
[1736905765411,0.02156905,97411.0,97410.0,0.0016081]
[1736905765670,0.02256905,97411.0,97410.0,0.0016081]
[1736905766275,0.12679597,97411.0,97410.0,0.0016081]
[1736905766304,0.27679597,97411.0,97410.0,0.0016081]
[1736905766570,0.27579597,97411.0,97410.0,0.0016081]
[1736905767027,0.69824184,97411.0,97410.0,0.0016081]
[1736905767228,0.62759597,97411.0,97410.0,0.0016081]
[1736905767461,0.62859597,97411.0,97410.0,0.0016081]
[1736905767703,0.67116565,97411.0,97410.0,0.0016081]
[1736905768185,0.67016565,97411.0,97410.0,0.0016081]
[1736905768657,0.04156968,97408.0,97399.0,0.000862]
[1736905768892,0.378338,97400.0,97399.0,0.000862]
[1736905769014,0.48256492,97400.0,97399.0,0.000862]
[1736905769476,0.45956492,97400.0,97399.0,0.000862]
[1736905771241,0.46056492,97400.0,97399.0,0.000862]
[1736905771439,0.46660492,97400.0,97399.0,0.000862]
[1736905772443,0.47670325,97400.0,97399.0,0.000862]
[1736905774283,0.80650325,97400.0,97399.0,0.000862]
[1736905775942,0.80650325,97400.0,97399.0,0.0017168]
[1736905776869,0.80046325,97400.0,97399.0,0.0017168]
[1736905777786,0.205357,97391.0,97390.0,0.0017955]
[1736905778002,0.30958392,97391.0,97390.0,0.0017955]
[1736905778641,0.45958392,97391.0,97390.0,0.0017955]
[1736905779012,0.45958392,97391.0,97390.0,0.00294212]
[1736905779821,0.15,97390.0,97383.0,0.00179151]
[1736905780019,0.205353,97393.0,97383.0,0.00184304]
[1736905780020,0.355372,97384.0,97383.0,0.00184304]
[1736905780225,0.45959892,97384.0,97383.0,0.00184304]
[1736905780427,0.50608937,97384.0,97383.0,0.00184304]
[1736905780728,0.45959892,97384.0,97383.0,0.00184304]
[1736905780982,0.45959892,97384.0,97381.0,0.0004]
[1736905780983,0.173,97383.0,97381.0,0.0004]
[1736905781124,0.48260292,97382.0,97381.0,0.00054675]
[1736905782556,0.46564292,97382.0,97381.0,0.00054675]
[1736905783019,0.46764292,97382.0,97381.0,0.00054675]
[1736905783178,0.79744292,97382.0,97381.0,0.00054675]
[1736905783757,0.80144292,97382.0,97381.0,0.00054675]
[1736905784539,0.82444292,97382.0,97381.0,0.00054675]
[1736905788522,0.82444292,97382.0,97381.0,0.00140055]
[1736905792741,0.79540292,97382.0,97381.0,0.00140055]
[1736905792953,0.80144292,97382.0,97381.0,0.00140055]
[1736905793556,0.205404,97369.0,97368.0,0.08479235]
[1736905793890,0.205404,97369.0,97368.0,0.08484103]
[1736905794881,0.30963092,97369.0,97368.0,0.00184103]
[1736905795074,0.45963092,97369.0,97368.0,0.00184103]
[1736905795478,0.78943092,97369.0,97368.0,0.00184103]
[1736905795709,0.80973861,97369.0,97368.0,0.00184103]
[1736905796481,0.80973861,97369.0,97368.0,0.00384103]
[1736905797076,0.83273861,97369.0,97368.0,0.00384103]
[1736905797252,0.83273861,97369.0,97368.0,0.00184103]
[1736905797451,0.83573861,97369.0,97368.0,0.00184103]
[1736905797859,0.83273861,97369.0,97368.0,0.00184103]
[1736905798055,0.83273861,97369.0,97368.0,0.00284103]
[1736905798261,0.95425184,97369.0,97368.0,0.001]
[1736905798436,0.85002492,97369.0,97368.0,0.001]
[1736905798636,0.85606492,97369.0,97368.0,0.001]
[1736905799722,0.86006492,97369.0,97368.0,0.001]
[1736905799929,0.85402492,97369.0,97368.0,0.001854]
[1736905800131,0.86006492,97369.0,97368.0,0.001854]
[1736905801333,0.85402492,97369.0,97368.0,0.001854]
[1736905801518,0.86006492,97369.0,97368.0,0.001854]
[1736905801913,0.85402492,97369.0,97368.0,0.001854]
[1736905802113,0.86006492,97369.0,97368.0,0.001854]
[1736905806084,0.83706492,97369.0,97368.0,0.001854]
[1736905806747,0.576798,97369.0,97368.0,0.001854]
[1736905806968,0.371394,97369.0,97368.0,0.124354]
[1736905807304,0.371394,97369.0,97368.0,0.078254]
[1736905807661,0.371394,97369.0,97365.0,0.04242367]
[1736905807662,0.173,97368.0,97352.0,0.00179004]
[1736905807877,0.15,97359.0,97352.0,4.869e-05]
[1736905808227,0.205437,97353.0,97352.0,0.000195]
[1736905808429,0.30966392,97353.0,97352.0,0.000195]
[1736905809007,0.81850392,97353.0,97352.0,0.000195]
[1736905809392,0.83904446,97353.0,97352.0,0.000195]
[1736905809714,0.04156968,97328.0,97301.0,0.10741047]
[1736905809912,0.20553,97309.0,97308.0,0.04242367]
[1736905810145,0.15,97317.0,97304.0,0.05843032]
[1736905810299,0.10422692,97327.0,97309.0,0.05843032]
[1736905810300,0.205518,97315.0,97309.0,0.05843032]
[1736905810493,0.205532,97309.0,97305.0,0.0461]
[1736905810691,0.02029559,97310.0,97309.0,0.13483032]
[1736905811695,0.02044566,97310.0,97309.0,0.13483032]
[1736905812348,0.02044566,97310.0,97309.0,0.0774]
[1736905812802,0.02044566,97310.0,97309.0,0.0764]
[1736905812989,0.02044566,97310.0,97309.0,0.0784]
[1736905813903,0.02144566,97310.0,97309.0,0.008]
[1736905814507,0.12567258,97310.0,97309.0,0.008]
[1736905815531,0.02144566,97310.0,97309.0,0.008]
[1736905818297,0.00115007,97310.0,97309.0,0.06643032]
[1736905818501,0.00115007,97310.0,97309.0,0.19023032]
[1736905818705,0.00115007,97310.0,97309.0,0.19125788]
[1736905818978,0.00115007,97310.0,97309.0,0.19023032]
[1736905819196,0.00015007,97310.0,97309.0,0.18223032]
[1736905819593,0.00115007,97310.0,97309.0,0.19023032]
[1736905819806,0.00115007,97310.0,97309.0,0.18423032]
[1736905819960,0.00115007,97310.0,97309.0,0.18223032]
[1736905820155,0.00215007,97310.0,97309.0,0.19023032]
[1736905820455,0.00215007,97310.0,97309.0,0.19323032]
[1736905820652,0.25637699,97310.0,97309.0,0.011]
[1736905821507,0.25637699,97310.0,97309.0,0.008]
[1736905821714,0.205543,97304.0,97301.0,0.0920183]
[1736905821937,0.10437699,97310.0,97301.0,0.0920183]
[1736905822111,0.20553,97309.0,97302.0,0.05843032]
[1736905822354,0.15,97308.0,97302.0,0.05843032]
[1736905822514,0.15,97306.0,97302.0,0.05843032]
[1736905822916,0.205535,97307.0,97302.0,0.05843032]
[1736905823121,0.02110223,97304.0,97302.0,0.05843032]
[1736905823342,0.02110223,97304.0,97302.0,0.06343032]
[1736905823747,0.02110223,97304.0,97302.0,0.05943032]
[1736905824954,0.02110223,97304.0,97302.0,0.05843032]
[1736905825164,0.02110223,97304.0,97302.0,0.06043032]
[1736905825530,0.02110223,97304.0,97302.0,0.06743032]
[1736905825937,0.02110223,97304.0,97302.0,0.06043032]
[1736905826316,0.02110223,97304.0,97302.0,0.002]
[1736905826317,0.205543,97303.0,97302.0,0.002]
[1736905826899,0.205543,97303.0,97302.0,0.01]
[1736905826900,0.355543,97303.0,97302.0,0.01]
[1736905827339,0.355543,97303.0,97302.0,0.00833738]
[1736905827541,0.02210223,97304.0,97302.0,0.00833738]
[1736905827899,0.02210223,97304.0,97303.0,0.13823032]
[1736905828687,0.02110223,97304.0,97303.0,0.13823032]